[Event "FIDE World School-ch O-11 2025"]
[Site "Vrnjacka Banja"]
[Date "2025.03.25"]
[Round "6.2"]
[White "Uzdemir, Ali Poyraz"]
[Black "Zhauynbay, Alimzhan"]
[Result "0-1"]
[Annotator "NA RC"]
[ECO "B33"]
[WhiteElo "2184"]
[BlackElo "1927"]
[PlyCount "84"]
[EventDate "2025.03.19"]
[EventType "swiss"]
[EventCountry "SRB"]
[SourceTitle "playchess.com"]
[Source "ChessBase"]
[SourceQuality "1"]
[TimeControl "5400+30"]

1. e4 {[%emt 0:00:01]} c5 {[%emt 0:00:11]} 2. Nf3 {[%emt 0:00:03]} Nc6 {[%emt 0:00:10]} 3. d4 {[%emt 0:00:03]} cxd4 {[%emt 0:00:05]} 4. Nxd4 {[%emt 0:00:05]} Nf6 {[%emt 0:00:12]} 5. Nc3 {[%emt 0:00:03]} e5 {[%emt 0:00:19]} 6. Ndb5 {[%emt 0:00:33]} d6 {[%emt 0:00:12]} 7. Bg5 {[%emt 0:00:07]} a6 {[%emt 0:00:09]} 8. Na3 {[%emt 0:04:10]} b5 {[%emt 0:00:06]} 9. Nd5 {[%emt 0:00:04]} Be7 {[%emt 0:00:05]} 10. Bxf6 {[%emt 0:00:03]} Bxf6 {[%emt 0:00:07]} 11. c4 {[%emt 0:00:05]} b4 {[%emt 0:00:10]} 12. Nc2 {[%emt 0:00:03]} a5 {[%emt 0:00:17]} 13. Qf3 {[%emt 0:00:07]} Be7 {[%emt 0:02:30]} 14. Rd1 {[%emt 0:01:37]} O-O {[%emt 0:22:55]} 15. c5 {[%emt 0:00:58]} Be6 {[%emt 0:12:15]} 16. Nxe7+ {[%emt 1:30:28]} Qxe7 {[%emt 0:01:48]} 17. cxd6 {[%emt 0:00:00]} Qb7 {[%emt 0:03:40]} 18. Qd3 {[%emt 0:00:00]} b3 {[%emt 0:09:46]} 19. axb3 {[%emt 0:00:00]} Bxb3 {[%emt 0:02:02]} 20. Qb5 {[%emt 0:00:00]} Qxb5 {[%emt 0:03:23]} 21. Bxb5 {[%emt 0:00:00]} Na7 {[%emt 0:04:51]} 22. Bd3 {[%emt 0:00:00]} Rad8 {[%emt 0:01:35]} 23. Rd2 {[%emt 0:00:00]} Rxd6 {[%emt 0:01:23]} 24. Ne3 {[%emt 0:00:00]} Rfd8 {[%emt 0:02:47]} 25. Ke2 {[%emt 0:00:00]} Nc6 {[%emt 0:02:23]} 26. Rc1 {[%emt 0:00:00]} Nb4 {[%emt 0:04:53]} 27. Rc3 {[%emt 0:00:00]} a4 {[%emt 0:00:33]} 28. g3 {[%emt 0:00:00]} Kf8 {[%emt 0:07:02]} 29. f4 {[%emt 0:00:00]} f6 {[%emt 0:01:36]} 30. fxe5 {[%emt 0:00:00]} fxe5 {[%emt 0:00:06]} 31. g4 {[%emt 0:00:00]} g5 {[%emt 0:04:01]} 32. h3 {[%emt 0:00:00]} h6 {[%emt 0:00:09]} 33. Nf5 {[%emt 0:00:48]} Rxd3 {[%emt 0:00:23]} 34. Rdxd3 {[%emt 0:00:11]} Nxd3 {[%emt 0:00:11]} 35. Rc6 {[%emt 0:00:33]} Nxb2 {[%emt 0:01:18]} 36. Rf6+ {[%emt 0:00:39]} Ke8 {[%emt 0:00:07]} 37. Rxh6 {[%emt 0:00:32]} a3 {[%emt 0:00:29]} 38. Rh8+ {[%emt 0:00:02]} Kd7 {[%emt 0:00:05]} 39. Rh7+ {[%emt 0:00:06]} Kc6 {[%emt 0:00:14]} 40. Rh6+ {[%emt 0:00:17]} Kc5 {[%emt 0:00:08]} 41. Ne3 {[%emt 0:00:24]} a2 {[%emt 0:00:07]} 42. Ra6 {[%emt 0:00:02]} Na4 {[%emt 0:00:07]} 0-1

[Event "FIDE World School-ch O-11 2025"]
[Site "Vrnjacka Banja"]
[Date "2025.03.25"]
[Round "6.3"]
[White "Jumanazarov, Ibrohim"]
[Black "Tulegen, Ramazan"]
[Result "1/2-1/2"]
[Annotator "NA RC"]
[ECO "E68"]
[WhiteElo "1869"]
[BlackElo "1973"]
[PlyCount "97"]
[EventDate "2025.03.19"]
[EventType "swiss"]
[EventCountry "SRB"]
[SourceTitle "playchess.com"]
[Source "ChessBase"]
[SourceQuality "1"]
[TimeControl "5400+30"]

1. d4 {[%emt 0:03:14]} Nf6 {[%emt 0:00:54]} 2. c4 {[%emt 0:00:21]} g6 {[%emt 0:00:07]} 3. Nf3 {[%emt 0:00:21]} Bg7 {[%emt 0:00:36]} 4. g3 {[%emt 0:00:08]} O-O {[%emt 0:06:27]} 5. Bg2 {[%emt 0:00:07]} d6 {[%emt 0:02:33]} 6. Nc3 {[%emt 0:03:09]} c6 {[%emt 0:01:22]} 7. O-O {[%emt 0:01:42]} Qc7 {[%emt 0:01:37]} 8. e4 {[%emt 0:06:22]} Nbd7 {[%emt 0:06:50]} 9. Re1 {[%emt 0:11:04]} e5 {[%emt 0:03:43]} 10. dxe5 {[%emt 0:06:50]} dxe5 {[%emt 0:01:33]} 11. Qe2 {[%emt 0:02:03]} Nc5 {[%emt 0:06:13]} 12. b3 {[%emt 0:07:56]} Rd8 {[%emt 0:08:27]} 13. Bg5 {[%emt 0:14:11]} Ne6 {[%emt 0:09:13]} 14. Rad1 {[%emt 0:05:07]} Nxg5 {[%emt 0:10:56]} 15. Nxg5 {[%emt 0:05:55]} h6 {[%emt 0:06:32]} 16. Rxd8+ {[%emt 0:05:08]} Qxd8 {[%emt 0:00:11]} 17. Nf3 {[%emt 0:00:08]} Bg4 {[%emt 0:00:17]} 18. Rd1 {[%emt 0:02:11]} Qc7 {[%emt 0:03:17]} 19. Qd3 {[%emt 0:05:17]} Bf8 {[%emt 0:02:01]} 20. h3 {[%emt 0:01:42]} Bxf3 {[%emt 0:00:33]} 21. Qxf3 {[%emt 0:01:49]} Kg7 {[%emt 0:02:07]} 22. Rd3 {[%emt 0:10:05]} Bb4 {[%emt 0:02:23]} 23. Nd1 {[%emt 0:02:39]} Nd7 {[%emt 0:02:58]} 24. Ne3 {[%emt 0:00:35]} Nc5 {[%emt 0:01:14]} 25. Rd1 {[%emt 0:00:09]} Ne6 {[%emt 0:01:35]} 26. Nc2 {[%emt 0:01:30]} Bc5 {[%emt 0:00:47]} 27. Qd3 {[%emt 0:03:40]} a5 {[%emt 0:01:56]} 28. Qc3 {[%emt 0:00:32]} Nd4 {[%emt 0:01:15]} 29. Nxd4 {[%emt 0:00:17]} Bxd4 {[%emt 0:00:13]} 30. Qc2 {[%emt 0:00:22]} Qb6 {[%emt 0:01:46]} 31. a4 {[%emt 0:00:46]} Qc5 {[%emt 0:01:11]} 32. Qe2 {[%emt 0:00:35]} Rb8 {[%emt 0:01:53]} 33. Bf1 {[%emt 0:00:20]} Rd8 {[%emt 0:04:06]} 34. Kg2 {[%emt 0:00:13]} Rd6 {[%emt 0:00:27]} 35. Rd3 {[%emt 0:00:56]} Qb6 {[%emt 0:04:02]} 36. Qc2 {[%emt 0:00:30]} Rf6 {[%emt 0:01:00]} 37. Rf3 {[%emt 0:00:33]} Rxf3 {[%emt 0:00:17]} 38. Kxf3 {[%emt 0:00:03]} Kf6 {[%emt 0:00:10]} 39. Kg2 {[%emt 0:00:46]} Ke7 {[%emt 0:00:41]} 40. Bd3 {[%emt 0:00:39]} Kd6 {[%emt 0:01:32]} 41. Kf3 {[%emt 0:00:32]} Qb4 {[%emt 0:01:22]} 42. Kg2 {[%emt 0:00:28]} Kc5 {[%emt 0:01:07]} 43. Qd1 {[%emt 0:00:21]} Qc3 {[%emt 0:00:51]} 44. Bc2 {[%emt 0:00:38]} Kb4 {[%emt 0:01:05]} 45. Qe2 {[%emt 0:00:19]} Bc5 {[%emt 0:01:17]} 46. Bd1 {[%emt 0:00:36]} Bd4 {[%emt 0:01:07]} 47. Kf1 {[%emt 0:00:00]} Ka3 {[%emt 0:02:16]} 48. Qf3 {[%emt 0:01:41]} Qb2 {[%emt 0:00:30]} 49. Qe2 {[%emt 0:00:30]} 1/2-1/2

[Event "FIDE World School-ch O-11 2025"]
[Site "Vrnjacka Banja"]
[Date "2025.03.25"]
[Round "6.4"]
[White "Zabelin, Platon"]
[Black "Bai, Moxuan"]
[Result "1/2-1/2"]
[Annotator "NA RC"]
[ECO "E39"]
[WhiteElo "1831"]
[BlackElo "1726"]
[PlyCount "106"]
[EventDate "2025.03.19"]
[EventType "swiss"]
[EventCountry "SRB"]
[SourceTitle "playchess.com"]
[Source "ChessBase"]
[SourceQuality "1"]
[TimeControl "5400+30"]

1. d4 {[%emt 0:00:10]} Nf6 {[%emt 0:01:27]} 2. c4 {[%emt 0:00:06]} e6 {[%emt 0:00:05]} 3. Nc3 {[%emt 0:00:04]} Bb4 {[%emt 0:00:31]} 4. Qc2 {[%emt 0:00:08]} c5 {[%emt 0:01:15]} 5. dxc5 {[%emt 0:00:11]} O-O {[%emt 0:00:10]} 6. Nf3 {[%emt 0:00:52]} Na6 {[%emt 0:00:07]} 7. a3 {[%emt 0:00:17]} Bxc3+ {[%emt 0:06:13]} 8. Qxc3 {[%emt 0:00:13]} Nxc5 {[%emt 0:01:25]} 9. g3 {[%emt 0:06:42]} b6 {[%emt 0:09:13]} 10. Bg2 {[%emt 0:01:05]} Bb7 {[%emt 0:00:35]} 11. O-O {[%emt 0:03:28]} Rc8 {[%emt 0:02:49]} 12. b3 {[%emt 0:09:53]} d5 {[%emt 0:03:00]} 13. Rd1 {[%emt 0:10:42]} Qe7 {[%emt 0:01:09]} 14. Bf4 {[%emt 0:19:08]} Nce4 {[%emt 0:09:24]} 15. Qb4 {[%emt 0:04:13]} Qxb4 {[%emt 0:02:19]} 16. axb4 {[%emt 0:00:02]} a6 {[%emt 0:58:48]} 17. Ne5 {[%emt 0:05:52]} Rfd8 {[%emt 0:00:00]} 18. Be3 {[%emt 0:08:12]} b5 {[%emt 0:00:00]} 19. c5 {[%emt 0:02:05]} Kf8 {[%emt 0:00:00]} 20. Bd4 {[%emt 0:08:46]} Nd7 {[%emt 0:00:00]} 21. Nxd7+ {[%emt 0:02:00]} Rxd7 {[%emt 0:00:00]} 22. Bxe4 {[%emt 0:00:02]} dxe4 {[%emt 0:00:00]} 23. Bxg7+ {[%emt 0:00:01]} Ke8 {[%emt 0:00:00]} 24. Rxd7 {[%emt 0:04:22]} Kxd7 {[%emt 0:00:00]} 25. Rd1+ {[%emt 0:00:02]} Ke8 {[%emt 0:00:00]} 26. Rd6 {[%emt 0:04:32]} Rc6 {[%emt 0:00:00]} 27. Rd4 {[%emt 0:00:26]} Rc7 {[%emt 0:00:00]} 28. Be5 {[%emt 0:01:46]} Rd7 {[%emt 0:00:00]} 29. Bd6 {[%emt 0:00:08]} f5 {[%emt 0:00:00]} 30. Rd1 {[%emt 0:03:15]} Bd5 {[%emt 0:00:00]} 31. Rc1 {[%emt 0:01:04]} Bc6 {[%emt 0:00:00]} 32. h3 {[%emt 0:01:21]} h5 {[%emt 0:00:00]} 33. Kh2 {[%emt 0:00:06]} Kd8 {[%emt 0:00:00]} 34. Rg1 {[%emt 0:02:12]} Bd5 {[%emt 0:00:00]} 35. Ra1 {[%emt 0:01:09]} Bb7 {[%emt 0:00:00]} 36. Rc1 {[%emt 0:00:11]} Bc6 {[%emt 0:00:00]} 37. Rc3 {[%emt 0:00:40]} Kc8 {[%emt 0:00:00]} 38. g4 {[%emt 0:02:47]} hxg4 {[%emt 0:00:00]} 39. hxg4 {[%emt 0:00:08]} Rh7+ {[%emt 0:00:00]} 40. Rh3 {[%emt 0:00:22]} Rxh3+ {[%emt 0:00:00]} 41. Kxh3 {[%emt 0:00:01]} fxg4+ {[%emt 0:00:00]} 42. Kxg4 {[%emt 0:00:02]} Bd5 {[%emt 0:00:00]} 43. Kf4 {[%emt 0:00:14]} Kd7 {[%emt 0:00:00]} 44. Ke5 {[%emt 0:00:10]} Bc6 {[%emt 0:00:00]} 45. Bb8 {[%emt 0:00:20]} Bd5 {[%emt 0:00:00]} 46. Kd4 {[%emt 0:00:14]} Kc8 {[%emt 0:00:00]} 47. Bf4 {[%emt 0:00:21]} Kd7 {[%emt 0:00:00]} 48. Bd2 {[%emt 0:00:25]} Kc6 {[%emt 0:00:00]} 49. Ke3 {[%emt 0:00:53]} Kd7 {[%emt 0:00:00]} 50. Bc3 {[%emt 0:00:22]} Kc6 {[%emt 0:00:00]} 51. Kf4 {[%emt 0:01:05]} Kd7 {[%emt 0:00:00]} 52. Ke5 {[%emt 0:00:07]} Kc6 {[%emt 0:00:00]} 53. Bd2 {[%emt 0:01:10]} Kd7 {[%emt 0:00:00]} 1/2-1/2

[Event "FIDE World School-ch O-11 2025"]
[Site "Vrnjacka Banja"]
[Date "2025.03.25"]
[Round "6.5"]
[White "Yildiz, Ali Aras"]
[Black "Lishoy Gengis Paratazham, Dildarav"]
[Result "1-0"]
[Annotator "NA RC"]
[ECO "C09"]
[WhiteElo "1932"]
[BlackElo "2071"]
[PlyCount "153"]
[EventDate "2025.03.19"]
[EventType "swiss"]
[EventCountry "SRB"]
[SourceTitle "playchess.com"]
[Source "ChessBase"]
[SourceQuality "1"]
[TimeControl "5400+30"]

1. e4 {[%emt 0:00:24]} e6 {[%emt 0:00:14]} 2. d4 {[%emt 0:00:30]} d5 {[%emt 0:00:06]} 3. Nd2 {[%emt 0:00:04]} c5 {[%emt 0:00:14]} 4. exd5 {[%emt 0:01:09]} exd5 {[%emt 0:00:33]} 5. Bb5+ {[%emt 0:03:54]} Nc6 {[%emt 0:01:03]} 6. Ngf3 {[%emt 0:02:15]} Qe7+ {[%emt 0:00:35]} 7. Be2 {[%emt 0:00:52]} Qc7 {[%emt 0:07:36]} 8. O-O {[%emt 0:03:46]} Nf6 {[%emt 0:09:47]} 9. dxc5 {[%emt 0:03:15]} Bxc5 {[%emt 0:00:33]} 10. Nb3 {[%emt 0:03:22]} Be7 {[%emt 0:03:29]} 11. Bg5 {[%emt 0:07:15]} O-O {[%emt 0:01:48]} 12. h3 {[%emt 0:06:00]} Rd8 {[%emt 0:02:17]} 13. Nbd4 {[%emt 0:06:26]} Be6 {[%emt 0:07:02]} 14. c3 {[%emt 0:04:19]} h6 {[%emt 0:04:55]} 15. Bh4 {[%emt 0:01:15]} Nxd4 {[%emt 0:57:48]} 16. Nxd4 {[%emt 0:53:44]} Ne4 {[%emt 0:00:00]} 17. Bxe7 {[%emt 0:00:00]} Qxe7 {[%emt 0:00:00]} 18. Bf3 {[%emt 0:00:00]} f5 {[%emt 0:00:00]} 19. Re1 {[%emt 0:00:00]} Qd7 {[%emt 0:00:00]} 20. Qc2 {[%emt 0:00:00]} Bf7 {[%emt 0:00:00]} 21. Rad1 {[%emt 0:00:00]} Rac8 {[%emt 0:00:00]} 22. Qc1 {[%emt 0:00:00]} Bg6 {[%emt 0:00:00]} 23. Ne2 {[%emt 0:00:00]} Qc7 {[%emt 0:00:00]} 24. Rd4 {[%emt 0:00:00]} Bf7 {[%emt 0:00:00]} 25. Red1 {[%emt 0:00:00]} b5 {[%emt 0:00:00]} 26. Nf4 {[%emt 0:00:00]} Qb6 {[%emt 0:00:00]} 27. Qe3 {[%emt 0:00:00]} Qb7 {[%emt 0:00:00]} 28. Bxe4 {[%emt 0:00:00]} fxe4 {[%emt 0:00:00]} 29. Qd2 {[%emt 0:00:00]} Rc4 {[%emt 0:00:00]} 30. b3 {[%emt 0:00:00]} Rxd4 {[%emt 0:00:00]} 31. Qxd4 {[%emt 0:00:00]} Qc7 {[%emt 0:00:00]} 32. g3 {[%emt 0:00:00]} g5 {[%emt 0:00:00]} 33. Ng2 {[%emt 0:01:55]} Rc8 {[%emt 0:00:00]} 34. Ne3 {[%emt 0:02:40]} Qxc3 {[%emt 0:00:00]} 35. Qxa7 {[%emt 0:00:38]} Qc5 {[%emt 0:02:29]} 36. Qd7 {[%emt 0:01:00]} Qc6 {[%emt 0:01:15]} 37. Qxc6 {[%emt 0:02:52]} Rxc6 {[%emt 0:00:00]} 38. Nxd5 {[%emt 0:00:16]} Kg7 {[%emt 0:00:24]} 39. Ne3 {[%emt 0:00:42]} h5 {[%emt 0:02:06]} 40. Nf5+ {[%emt 0:00:32]} Kf6 {[%emt 0:01:48]} 41. Rd6+ {[%emt 0:00:32]} Rxd6 {[%emt 0:00:01]} 42. Nxd6 {[%emt 0:00:01]} b4 {[%emt 0:00:52]} 43. Nxf7 {[%emt 0:01:30]} Kxf7 {[%emt 0:00:07]} 44. Kf1 {[%emt 0:00:22]} g4 {[%emt 0:00:33]} 45. hxg4 {[%emt 0:00:39]} hxg4 {[%emt 0:00:02]} 46. Ke2 {[%emt 0:00:24]} Ke6 {[%emt 0:00:42]} 47. Kd2 {[%emt 0:00:24]} Kd5 {[%emt 0:00:53]} 48. Ke3 {[%emt 0:00:34]} Ke5 {[%emt 0:00:07]} 49. Ke2 {[%emt 0:00:06]} Kd5 {[%emt 0:01:06]} 50. Kd1 {[%emt 0:00:15]} Kd4 {[%emt 0:01:22]} 51. Kc2 {[%emt 0:00:42]} e3 {[%emt 0:01:21]} 52. fxe3+ {[%emt 0:00:11]} Kxe3 {[%emt 0:00:01]} 53. a4 {[%emt 0:00:27]} bxa3 {[%emt 0:00:23]} 54. b4 {[%emt 0:00:31]} Kf3 {[%emt 0:00:14]} 55. b5 {[%emt 0:00:07]} Kxg3 {[%emt 0:00:26]} 56. b6 {[%emt 0:00:13]} a2 {[%emt 0:00:39]} 57. Kb2 {[%emt 0:00:11]} Kf2 {[%emt 0:00:07]} 58. b7 {[%emt 0:00:16]} g3 {[%emt 0:00:02]} 59. b8=Q {[%emt 0:00:12]} g2 {[%emt 0:00:07]} 60. Qf4+ {[%emt 0:00:19]} Ke2 {[%emt 0:00:14]} 61. Qg3 {[%emt 0:00:19]} Kf1 {[%emt 0:00:08]} 62. Qf3+ {[%emt 0:00:17]} Kg1 {[%emt 0:00:08]} 63. Kxa2 {[%emt 0:00:08]} Kh2 {[%emt 0:00:05]} 64. Qf2 {[%emt 0:00:20]} Kh1 {[%emt 0:00:02]} 65. Qh4+ {[%emt 0:00:16]} Kg1 {[%emt 0:00:01]} 66. Kb3 {[%emt 0:00:20]} Kf1 {[%emt 0:00:05]} 67. Qf4+ {[%emt 0:00:11]} Ke2 {[%emt 0:00:10]} 68. Qg3 {[%emt 0:00:15]} Kf1 {[%emt 0:00:01]} 69. Qf3+ {[%emt 0:00:06]} Kg1 {[%emt 0:00:02]} 70. Kc3 {[%emt 0:00:18]} Kh2 {[%emt 0:00:06]} 71. Qf2 {[%emt 0:00:17]} Kh1 {[%emt 0:00:01]} 72. Qh4+ {[%emt 0:00:09]} Kg1 {[%emt 0:00:02]} 73. Kd3 {[%emt 0:00:20]} Kf1 {[%emt 0:10:48]} 74. Qf4+ {[%emt 0:00:36]} Ke1 {[%emt 0:00:00]} 75. Qf3 {[%emt 0:00:32]} g1=N {[%emt 0:00:00]} 76. Qg2 {[%emt 0:00:17]} Nh3 {[%emt 0:00:00]} 77. Qe2# {[%emt 0:00:05]} 1-0

[Event "FIDE World School-ch O-11 2025"]
[Site "Vrnjacka Banja"]
[Date "2025.03.25"]
[Round "6.6"]
[White "Kiringoda, Thehas Rithmitha"]
[Black "Pavlovic, Aleksej"]
[Result "1-0"]
[Annotator "NA RC"]
[ECO "C14"]
[WhiteElo "1868"]
[BlackElo "1571"]
[PlyCount "27"]
[EventDate "2025.03.19"]
[EventType "swiss"]
[EventCountry "SRB"]
[SourceTitle "playchess.com"]
[Source "ChessBase"]
[SourceQuality "1"]
[TimeControl "5400+30"]

1. e4 {[%emt 0:00:04]} e6 {[%emt 0:00:07]} 2. d4 {[%emt 0:00:05]} d5 {[%emt 0:00:03]} 3. Nc3 {[%emt 0:00:08]} Nf6 {[%emt 0:00:18]} 4. Bg5 {[%emt 0:00:15]} Be7 {[%emt 0:00:42]} 5. e5 {[%emt 0:00:11]} Nfd7 {[%emt 0:00:06]} 6. h4 {[%emt 0:00:43]} h6 {[%emt 0:03:36]} 7. Bxe7 {[%emt 0:00:08]} Qxe7 {[%emt 0:00:07]} 8. Qg4 {[%emt 0:00:06]} g6 {[%emt 0:00:59]} 9. h5 {[%emt 0:00:53]} g5 {[%emt 0:00:44]} 10. O-O-O {[%emt 0:00:25]} a6 {[%emt 0:00:20]} 11. Nf3 {[%emt 0:03:24]} c5 {[%emt 0:00:42]} 12. dxc5 {[%emt 0:00:28]} Nxc5 {[%emt 0:00:44]} 13. Nxd5 {[%emt 0:00:10]} Qf8 {[%emt 0:01:44]} 14. Nc7+ {[%emt 0:01:47]} 1-0